bitfinex/quotes_ETHUSD_20210401
["timestamp","ask_amount","ask_price","bid_price","bid_amount"]
[1617247471211,7.54182572,1915.6,1915.5,56.68332926]
[1617247471413,7.54182572,1915.6,1915.5,31.83332926]
[1617247472614,5.69752572,1915.6,1915.5,31.83332926]
[1617247472837,5.59752572,1915.6,1915.5,30.0388982]
[1617247473240,5.59752572,1915.6,1915.5,26.75261]
[1617247474238,5.59752572,1915.6,1915.5,26.88941483]
[1617247475240,5.59752572,1915.6,1915.5,28.97572853]
[1617247475661,3.73552572,1915.6,1915.5,35.83162853]
[1617247475863,3.73552572,1915.6,1915.5,41.33162853]
[1617247476260,3.73552572,1915.6,1915.5,43.12605959]
[1617247476261,5.72e-06,1915.6,1915.5,43.12605959]
[1617247476859,5.72e-06,1915.6,1915.5,42.62605959]
[1617247478692,10.441,1915.6,1915.5,36.62605959]
[1617247478887,10.441,1915.6,1915.5,36.72405959]
[1617247479489,1.97712,1915.6,1915.5,37.92405959]
[1617247479691,9.77430572,1916.0,1915.6,14.4]
[1617247479887,9.77430572,1916.0,1915.9,19.06]
[1617247480088,20.21230572,1916.0,1915.9,21.9]
[1617247480287,20.21230572,1916.0,1915.9,29.9]
[1617247480488,20.21230572,1916.0,1915.9,30.867]
[1617247480735,20.21230572,1916.0,1915.9,38.68949]
[1617247480935,20.21230572,1916.0,1915.9,49.16249]
[1617247481535,18.37440572,1916.0,1915.9,49.16249]
[1617247482135,18.37440572,1916.0,1915.9,29.63989]
[1617247482337,18.37440572,1916.0,1915.9,19.07249]
[1617247483844,18.37440572,1916.0,1915.9,18.66249]
[1617247484643,16.53670572,1916.0,1915.9,19.05249]
[1617247486466,16.53670572,1916.0,1915.9,25.07139]
[1617247486661,16.53670572,1916.0,1915.9,40.18029]
[1617247486862,16.53670572,1916.0,1915.9,45.18029]
[1617247487264,16.53670572,1916.0,1915.9,50.18029]
[1617247487666,14.63450572,1916.0,1915.9,53.17472106]
[1617247488064,6.20304572,1916.0,1915.9,53.17472106]
[1617247488263,1.0,1916.4,1916.1,5.10989]
[1617247488490,1.0,1916.4,1916.2,10.2383226]
[1617247488690,1.0,1916.4,1916.3,34.1145]
[1617247488691,11.436,1916.4,1916.3,34.1145]
[1617247488889,11.436,1916.4,1916.3,43.9345]
[1617247489092,11.436,1916.4,1916.3,21.1345]
[1617247489290,11.436,1916.4,1916.3,30.94078433]
[1617247489490,11.436,1916.4,1916.3,31.32078433]
[1617247489690,11.436,1916.4,1916.3,29.52635327]
[1617247490691,11.436,1916.4,1916.3,37.52635327]
[1617247490892,9.5924,1916.4,1916.3,39.56465327]
[1617247491117,9.5924,1916.4,1916.3,44.56465327]
[1617247491517,9.5924,1916.4,1916.3,46.35908433]
[1617247493119,9.5924,1916.4,1916.3,46.63494497]
[1617247493762,7.7516,1916.4,1916.3,44.84051391]
[1617247494162,7.7516,1916.4,1916.3,49.84051391]
[1617247495164,4.62123639,1916.4,1916.3,51.04051391]
[1617247495366,1.0,1916.9,1916.4,32.1]
[1617247495566,1.0,1916.9,1916.8,40.43]
[1617247495767,1.0,1916.9,1916.8,48.7264]
[1617247495966,6.22318,1916.9,1916.8,53.7264]
[1617247496166,1.0,1917.4,1916.8,54.9264]
[1617247496371,1.0,1917.9,1917.4,20.9]
[1617247496372,0.95901107,1917.9,1917.4,20.9]
[1617247496569,0.95901107,1917.9,1917.6,5.01]
[1617247496767,7.44861107,1917.9,1917.7,5.01]
[1617247496970,7.44861107,1917.9,1917.7,13.01]
[1617247497167,7.44861107,1917.9,1917.7,14.9303]
[1617247497367,7.44861107,1917.9,1917.8,45.25411538]
[1617247497568,7.44861107,1917.9,1917.8,50.25411538]
[1617247497569,4.73211107,1917.9,1917.8,50.25411538]
[1617247497768,1.0,1918.4,1917.9,19.50652]
[1617247497969,1.0,1918.4,1918.0,4.05141886]
[1617247498170,1.0,1918.4,1918.1,5.79846894]
[1617247498372,1.0,1918.4,1918.3,19.76171]
[1617247498569,1.0,1918.4,1918.3,30.39171]
[1617247498995,1.0,1918.4,1918.3,18.06171]
[1617247499396,0.95,1918.4,1918.3,18.06171]
[1617247499796,0.41,1918.8,1918.3,18.44171]
[1617247499996,0.41,1918.8,1918.4,0.09406894]
[1617247499997,0.28,1918.8,1918.4,0.09406894]
[1617247500198,0.28,1918.8,1918.4,2.87406894]
[1617247500399,1.48,1918.8,1918.4,0.09406894]
[1617247500600,1.48,1918.8,1917.9,0.09406894]
[1617247500798,0.4,1918.5,1917.9,5.09406894]
[1617247500999,0.28,1918.4,1917.9,5.09406894]
[1617247501198,0.28,1918.4,1917.9,0.47406894]
[1617247502821,0.28,1918.5,1918.1,0.39]
[1617247503023,0.722,1918.7,1918.0,0.14]
[1617247503225,0.322,1918.7,1918.1,0.09406894]
[1617247504242,0.322,1918.7,1918.1,0.23521101]
[1617247504443,0.322,1918.7,1918.1,3.39521101]
[1617247504644,0.322,1918.7,1918.1,0.23521101]
[1617247505043,0.322,1918.7,1918.1,0.14114207]
[1617247505443,0.4,1918.6,1918.1,0.14114207]
[1617247505842,0.322,1918.7,1918.1,0.14114207]
[1617247506644,0.322,1918.7,1918.1,0.23521101]
[1617247506866,0.322,1918.7,1918.1,0.14114207]
[1617247508897,11.07082864,1918.8,1918.3,0.4]
[1617247509098,1.34,1918.8,1918.3,0.4]
[1617247509500,1.34,1918.8,1918.1,0.14114207]
[1617247509698,1.34,1918.8,1918.1,0.23521101]
[1617247509900,9.15539,1918.8,1918.1,0.23521101]
[1617247510106,18.88621864,1918.8,1918.1,0.23521101]
[1617247510298,18.88621864,1918.8,1918.1,0.14114207]
[1617247511901,9.08791864,1918.8,1918.2,0.4]
[1617247512119,1.27252864,1918.8,1918.2,0.4]
[1617247512323,1.2,1918.7,1918.2,0.4]
[1617247512519,1.2,1918.7,1918.2,0.49406894]
[1617247512921,1.2,1918.7,1918.2,0.4]
[1617247514527,1.2,1918.7,1918.1,0.15920707]
[1617247514738,1.2,1918.7,1918.1,0.54920707]
[1617247515538,1.34,1918.8,1918.1,0.54920707]
[1617247515738,1.34,1918.8,1918.2,0.09406894]
[1617247516139,7.81602,1918.7,1918.1,0.54920707]
[1617247516340,1.2,1918.6,1918.1,0.54920707]
[1617247516741,1.58,1918.6,1918.1,0.15920707]
[1617247516941,1.2,1918.6,1918.1,0.018065]
[1617247517766,9.01609,1918.6,1918.1,0.018065]
[1617247518167,2.3847134,1918.5,1918.1,0.018065]
[1617247518366,1.2,1918.3,1918.1,0.018065]
[1617247518567,43.5338424,1918.2,1918.1,0.018065]
[1617247518968,43.5338424,1918.2,1918.1,5e-06]
[1617247518969,48.9438424,1918.2,1918.1,5e-06]
[1617247520001,48.9363424,1918.2,1918.1,5e-06]
[1617247521400,45.0143,1918.2,1918.1,5e-06]
[1617247521602,44.6143,1918.2,1918.1,5e-06]
[1617247521804,39.6043,1918.2,1918.1,5e-06]
[1617247522000,38.4043,1918.2,1918.1,5e-06]
[1617247522201,33.38626595,1918.2,1918.1,5e-06]
[1617247523017,31.53036595,1918.2,1918.1,5e-06]
[1617247524819,31.92036595,1918.2,1918.1,5e-06]
[1617247525020,41.59386595,1918.2,1918.1,5e-06]
[1617247525868,39.75686595,1918.2,1918.1,5e-06]
[1617247526464,42.75686595,1918.2,1918.1,5e-06]
[1617247526966,42.75686595,1918.2,1917.8,2.0]
[1617247527164,29.29376595,1917.9,1917.8,2.0]
[1617247528389,36.79376595,1917.9,1916.9,0.38]
[1617247528587,36.79376595,1917.9,1916.7,0.09406894]
[1617247528588,8.42,1917.7,1916.7,0.37406894]
[1617247528786,0.14,1917.5,1916.8,0.99709917]
[1617247528986,10.25445377,1917.6,1916.8,0.39]
[1617247528987,8.55645377,1917.6,1916.8,0.39]
[1617247529186,6.35,1917.5,1916.8,0.39]
[1617247529387,6.24,1917.5,1916.8,0.39]
[1617247530189,7.82214,1917.2,1917.0,0.38]
[1617247531397,7.82214,1917.2,1916.6,1.28]
[1617247531598,7.82214,1917.2,1916.8,0.4]
[1617247531998,5.98304,1917.2,1916.8,0.4]
[1617247532398,5.98304,1917.2,1916.6,1.28]
[1617247532600,5.98304,1917.2,1916.6,1.66]
[1617247532800,5.98304,1917.2,1916.7,0.38]
[1617247532801,9.99936606,1917.2,1916.7,0.38]
[1617247533000,9.99936606,1917.2,1916.6,1.0]
[1617247533001,2.74513136,1917.1,1916.6,1.0]
[1617247533226,5.01,1916.9,1916.6,1.0]
[1617247533428,5.01,1916.9,1916.1,1.0]
[1617247533429,6.87632606,1916.8,1916.1,1.0]
[1617247533629,0.14,1916.6,1916.1,1.0]
[1617247533825,9.01763134,1916.6,1916.1,1.0]
[1617247534024,6.21,1916.5,1916.1,1.0]
[1617247534225,1.2,1916.3,1916.1,1.0]
[1617247534425,44.89550134,1916.2,1916.1,1.0]
[1617247534625,51.84876909,1916.2,1916.1,1.0]
[1617247534825,49.26619931,1916.2,1916.1,1.0]
[1617247535024,47.42649931,1916.2,1916.1,1.0]
[1617247535424,44.28323156,1916.2,1916.1,1.0]
[1617247535624,37.98817,1916.2,1916.1,1.0]
[1617247535852,9.1105,1916.3,1916.1,1.38]
[1617247536052,8.0,1916.3,1916.1,1.38]
[1617247536253,8.0,1916.3,1916.1,1.0]
[1617247536450,10.43661,1916.5,1916.1,1.0]
[1617247536653,11.63661,1916.5,1916.1,1.0]
[1617247537251,7.82574,1916.4,1916.1,1.0]
[1617247538051,7.3091,1916.4,1916.1,1.0]
[1617247538251,26.32696,1916.2,1916.1,1.0]
[1617247538897,7.82696,1916.2,1916.1,1.0]
[1617247539095,19.57696,1916.2,1916.1,1.0]
[1617247540097,20.77696,1916.2,1916.1,1.0]
[1617247540296,25.78696,1916.2,1916.1,1.0]
[1617247541102,23.94406,1916.2,1916.1,1.0]
[1617247542103,34.19406,1916.2,1916.1,1.0]
[1617247542504,34.19406,1916.2,1915.6,1.39]
[1617247542505,34.60406,1916.2,1915.6,1.0]
[1617247542707,1.0,1915.8,1915.6,1.0]
[1617247542905,33.2,1915.7,1915.6,1.0]
[1617247543305,36.38954103,1915.7,1915.6,1.0]
[1617247543503,40.19954103,1915.7,1915.6,1.0]
[1617247543729,37.01,1915.7,1915.6,1.0]
[1617247543928,35.1694,1915.7,1915.6,1.0]
[1617247544328,36.58504715,1915.7,1915.6,1.0]
[1617247544728,36.3694,1915.7,1915.6,1.0]
[1617247544929,35.1694,1915.7,1915.6,1.0]
[1617247545129,39.25399079,1915.7,1915.6,1.0]
[1617247547160,37.34719079,1915.7,1915.6,1.0]
[1617247548260,28.2526,1915.7,1915.6,1.0]
[1617247548460,28.2526,1915.7,1915.6,0.95]
[1617247548663,28.3926,1915.7,1914.8,2.0]
[1617247548879,7.83019,1915.4,1914.8,2.0]
[1617247549079,7.83019,1915.4,1914.8,2.39]
[1617247549282,9.06721221,1915.4,1914.8,2.39]
[1617247549678,7.83019,1915.4,1915.0,0.68]
[1617247550082,5.99299,1915.4,1915.0,0.68]
[1617247550281,7.1991,1915.6,1915.1,0.95]
[1617247550881,3.84387314,1915.5,1915.1,0.95]
[1617247551281,8.8799746,1915.6,1915.1,0.95]
[1617247551526,8.4799746,1915.6,1915.1,0.95]
[1617247551930,7.1991,1915.6,1915.1,0.95]
[1617247552127,7.83018,1915.4,1915.1,0.95]
[1617247552529,9.32772126,1915.4,1915.1,0.95]
[1617247552729,3.84387314,1915.3,1915.1,0.95]
[1617247552931,3.84387314,1915.3,1914.6,1.0]
[1617247553131,3.84387314,1915.3,1914.1,1.0]
[1617247553132,3.5532,1915.1,1914.1,1.0]
[1617247553438,13.29651871,1914.5,1914.1,1.0]
[1617247553633,3.80603476,1914.4,1914.1,1.0]
[1617247553830,10.35012157,1914.4,1914.1,1.0]
[1617247554032,1.2,1914.3,1914.1,1.0]
[1617247554231,1.2,1914.3,1913.9,0.03]
[1617247554232,7.72462476,1914.4,1913.9,0.03]
[1617247555230,7.6227313,1914.2,1913.9,0.03]
[1617247555430,5.01,1914.1,1913.9,0.03]
[1617247555633,11.5228,1914.1,1913.9,0.03]
[1617247555830,11.5228,1914.1,1913.9,0.44]
[1617247556230,12.47946,1914.1,1913.9,0.44]
[1617247556432,16.27621068,1914.1,1913.9,0.03]
[1617247556630,12.47946,1914.1,1913.9,0.03]
[1617247557054,12.47946,1914.1,1913.9,0.42]
[1617247557449,12.47946,1914.1,1913.9,0.03]
[1617247559252,10.64156,1914.1,1913.9,0.03]
[1617247560078,10.64156,1914.1,1913.9,0.41]
[1617247561478,10.64156,1914.1,1913.9,0.03]
[1617247561679,10.64156,1914.1,1913.9,0.41]
[1617247562103,10.64156,1914.1,1913.9,0.03]
[1617247562308,8.78986,1914.1,1913.9,0.41]
[1617247562704,8.78986,1914.1,1914.0,0.38]
[1617247562905,14.68986,1914.1,1914.0,0.204]
[1617247563107,8.78986,1914.1,1913.9,0.21]
[1617247563707,8.78986,1914.1,1914.0,0.38]
[1617247563911,8.78986,1914.1,1914.0,1.42116488]
[1617247564107,0.9524,1914.1,1914.0,1.58]
[1617247564310,4.08621871,1914.5,1914.0,1.58]
[1617247564510,4.08621871,1914.5,1914.4,0.4]
[1617247564938,4.08621871,1914.5,1914.4,9.7]
[1617247565335,2.24691871,1914.5,1914.4,1.6]
[1617247565934,2.24691871,1914.5,1914.4,3.57031651]
[1617247566336,2.24691871,1914.5,1914.4,1.6]
[1617247566736,2.24691871,1914.5,1914.4,0.4]
[1617247566937,2.24691871,1914.5,1914.2,0.38]
[1617247567137,2.24691871,1914.5,1914.0,2.0]
[1617247567138,9.16081871,1914.5,1914.0,2.0]
[1617247567356,7.8355,1914.3,1914.0,2.0]
[1617247567560,7.7855,1914.3,1914.0,2.0]
[1617247568356,5.9481,1914.3,1914.0,2.0]
[1617247568555,8.0374671,1914.3,1914.0,2.0]
[1617247568757,2.0893671,1914.3,1914.0,2.4]
[1617247569557,7.83478,1914.2,1914.0,2.4]
[1617247569975,7.83478,1914.2,1914.0,3.6]
[1617247570179,2.24691871,1914.5,1914.1,0.39]
[1617247570376,2.24691871,1914.5,1914.4,0.39]
[1617247570576,2.24691871,1914.5,1914.4,7.3689]
[1617247571375,0.40311871,1914.5,1914.4,8.5689]
[1617247571775,0.40311871,1914.5,1914.4,18.3689]
[1617247571975,0.40311871,1914.5,1914.4,34.4789]
[1617247572175,0.40311871,1914.5,1914.4,30.2647]
[1617247572603,17.8566,1914.8,1914.6,1.2]
[1617247572806,42.7055,1915.8,1914.7,30.08]
[1617247573004,7.82828,1915.5,1915.3,0.4]
[1617247573203,7.82828,1915.5,1915.0,0.38]
[1617247573403,7.82828,1915.5,1915.3,0.39]
[1617247574000,7.82828,1915.5,1915.1,0.28]
[1617247574202,7.82828,1915.5,1915.1,0.68]
[1617247574402,5.99028,1915.5,1915.3,0.38]
[1617247574601,5.99028,1915.5,1915.1,0.28]
[1617247574802,5.99028,1915.5,1915.2,0.4]
[1617247575430,5.99028,1915.5,1915.1,0.28]
[1617247575627,5.99028,1915.5,1915.1,0.68]
[1617247576027,5.99028,1915.5,1915.0,10.0]
[1617247576229,3.76508,1915.4,1915.0,10.0]
[1617247577030,3.76508,1915.4,1915.1,0.16373647]
[1617247577228,1.92768,1915.4,1915.1,0.16373647]
[1617247577431,1.92768,1915.4,1915.1,0.56373647]
[1617247577850,1.92768,1915.4,1915.1,0.16373647]
[1617247578053,1.92768,1915.4,1915.1,0.55373647]
[1617247578251,7.83066,1915.2,1915.1,0.55373647]
[1617247580053,0.14,1915.6,1915.1,0.55373647]
[1617247580252,2.21625,1915.7,1915.3,0.39]
[1617247580480,1.14,1915.9,1915.4,0.39]
[1617247580683,1.14,1915.9,1915.5,0.38]
[1617247580684,32.1473,1915.8,1915.5,0.38]
[1617247581679,32.1473,1915.8,1915.5,0.4]
[1617247581879,32.1473,1915.8,1915.4,0.28]
[1617247582280,7.82825,1915.6,1915.4,0.28]
[1617247582480,7.82825,1915.6,1915.5,0.16370228]
[1617247583309,5.99095,1915.6,1915.5,0.16370228]
[1617247583705,32.1473,1915.8,1915.5,0.16370228]
[1617247583706,19.0952,1915.8,1915.5,0.16370228]
[1617247584505,19.0952,1915.8,1915.6,0.39]
[1617247585508,18.9192,1915.8,1915.5,0.56370228]
[1617247586331,17.0804,1915.8,1915.5,0.56370228]
[1617247586534,24.90792,1915.8,1915.5,0.16370228]
[1617247588355,19.1682325,1915.8,1915.5,0.16370228]
[1617247588758,3.7751381,1915.7,1915.5,2.28e-06]
[1617247588958,3.7751381,1915.7,1915.0,2.0]
[1617247588959,5.01,1915.6,1915.0,2.0]
[1617247589158,5.01,1915.6,1913.7,3.65325879]
[1617247589159,10.0,1915.4,1913.7,3.65325879]
[1617247589359,7.83354,1914.5,1914.0,0.39]
[1617247589559,7.83354,1914.5,1914.1,0.357]
[1617247589560,15.08894,1914.5,1914.1,0.357]
[1617247589756,13.08594,1914.5,1914.1,0.357]
[1617247590556,13.08594,1914.5,1914.0,0.39]
[1617247590757,13.08594,1914.5,1914.0,0.67]
[1617247592586,13.08594,1914.5,1913.9,0.03]
[1617247592587,23.75,1914.4,1913.9,0.28]
[1617247592785,17.53092,1914.1,1913.9,0.28]
[1617247593387,17.53092,1914.1,1913.6,1.38]
[1617247593609,17.53092,1914.1,1913.6,1.0]
[1617247594809,17.53092,1914.1,1913.6,1.39]
[1617247595410,17.53092,1914.1,1913.7,0.4]
[1617247595609,15.68982,1914.1,1913.7,0.4]
[1617247595810,15.68982,1914.1,1913.8,0.38]
[1617247596634,15.68982,1914.1,1913.6,1.0]
[1617247596834,15.68982,1914.1,1913.7,4.13892552]
[1617247597035,9.6964,1914.1,1914.0,0.41]
[1617247597235,9.6964,1914.1,1914.0,4.13892552]
[1617247597455,10.44472,1914.6,1914.0,4.13892552]
[1617247597456,10.44472,1914.6,1914.0,0.41]
[1617247597656,10.44472,1914.6,1914.2,0.39]
[1617247597856,10.44472,1914.6,1913.8,4.92892552]
[1617247598054,10.44472,1914.6,1914.1,0.39]
[1617247598055,7.8325,1914.5,1914.1,0.39]
[1617247598254,16.9912,1914.5,1913.7,9.29406894]
[1617247598453,16.9912,1914.5,1913.9,0.39]
[1617247598653,15.1513,1914.5,1913.9,0.39]
[1617247598917,15.1513,1914.5,1914.0,0.41]
[1617247599124,15.1513,1914.5,1914.2,0.4]
[1617247599522,15.1513,1914.5,1913.7,3.7286805]
[1617247599721,15.1513,1914.5,1914.1,0.4]
[1617247600922,15.1513,1914.5,1914.0,0.28]
[1617247601123,15.1513,1914.5,1914.1,0.39]
[1617247601727,13.3103,1914.5,1914.1,0.39]
[1617247601924,13.3103,1914.5,1914.2,0.4]
[1617247602124,13.0603,1914.5,1914.2,0.4]
[1617247602527,9.1587,1914.5,1914.4,0.41]
[1617247603528,10.44444,1914.9,1914.4,0.41]
[1617247604126,7.83176,1914.7,1914.4,0.41]
[1617247604726,5.98706,1914.7,1914.4,0.41]
[1617247605926,5.98706,1914.7,1914.5,0.39]
[1617247606530,17.1764,1915.1,1914.6,4.12825294]
[1617247606734,17.1764,1915.1,1914.9,0.38]
[1617247607333,28.28752,1915.6,1914.9,0.38]
[1617247607534,28.28752,1915.6,1915.0,0.294]
[1617247607734,7.82911,1915.4,1915.0,0.294]
[1617247607933,7.82911,1915.4,1915.0,0.684]
[1617247610757,5.98531,1915.4,1915.0,0.674]
[1617247611985,1.2,1915.3,1914.7,5.01]
[1617247612185,1.6,1915.3,1914.6,0.41]
[1617247612386,3.8677859,1915.2,1914.4,0.66]
[1617247612786,7.83104,1914.9,1914.7,1.70327267]
[1617247612985,14.10024,1914.9,1914.7,1.70327267]
[1617247613786,14.10024,1914.9,1914.8,0.4]
[1617247613787,6.2692,1914.9,1914.8,0.4]
[1617247614384,7.97024,1915.2,1914.8,0.4]
[1617247615403,7.97024,1915.2,1914.7,0.41]
[1617247615805,7.97024,1915.2,1914.5,0.308]
[1617247616005,7.97024,1915.2,1914.5,0.698]
[1617247616405,7.97024,1915.2,1914.5,0.308]
[1617247616605,7.97024,1915.2,1914.5,0.708]
[1617247616806,6.26754,1915.2,1914.5,0.708]
[1617247617008,6.26754,1915.2,1914.8,0.38]
[1617247617435,6.26754,1915.2,1914.5,0.308]
[1617247617631,6.26754,1915.2,1914.6,0.41]
[1617247618432,6.01754,1915.2,1914.6,0.41]
[1617247619860,6.01754,1915.2,1914.3,3.73406894]
[1617247619861,9.88396398,1915.2,1914.3,3.73406894]
[1617247620062,0.4,1914.9,1914.0,0.49406894]
[1617247620259,6.70712788,1914.8,1913.7,0.09406894]
[1617247620462,0.14,1914.6,1913.7,0.41606894]
[1617247620659,0.14,1914.6,1913.7,0.322]
[1617247621059,0.14,1914.6,1913.7,0.41606894]
[1617247621261,5.25704,1914.6,1913.7,0.41606894]
[1617247621661,10.44574,1914.5,1914.3,0.38]
[1617247621860,25.2861,1914.9,1914.3,0.38]
[1617247622061,25.2861,1914.9,1914.5,0.4]
[1617247622492,25.2861,1914.9,1914.3,0.287]
[1617247622693,25.2861,1914.9,1914.4,0.39]
[1617247622894,23.4381,1914.9,1914.6,0.4]
[1617247623292,10.44261,1914.8,1914.6,0.4]
[1617247623491,10.44261,1914.8,1914.4,0.39]
[1617247624494,10.44261,1914.8,1914.3,0.287]
[1617247624891,10.44261,1914.8,1914.0,5.01]
[1617247625108,10.44261,1914.8,1914.2,0.4]
[1617247625909,8.60171,1914.8,1914.2,0.4]
[1617247627935,8.60171,1914.8,1914.5,0.41]
[1617247628131,8.60171,1914.8,1914.5,1.45057957]
[1617247628537,8.60171,1914.8,1914.5,1.04057957]
[1617247628931,6.76091,1914.8,1914.5,1.04057957]
[1617247629132,6.76091,1914.8,1914.6,0.16377923]
[1617247629934,26.92304,1914.9,1914.6,0.16377923]
[1617247630132,7.83167,1914.8,1914.6,1.63227155]
[1617247630561,7.83167,1914.8,1914.6,0.16377923]
[1617247631954,5.99447,1914.8,1914.6,0.16377923]
[1617247632757,5.99447,1914.8,1914.6,0.55377923]
[1617247633780,5.99447,1914.8,1914.6,0.16377923]
[1617247634980,4.15667,1914.8,1914.6,0.16377923]
[1617247635610,16.4804,1914.9,1914.6,0.56377923]
[1617247636013,16.1544,1915.6,1914.6,0.85777923]
[1617247636212,17.6962,1915.5,1915.0,0.38]
[1617247636412,17.8362,1915.5,1915.0,0.38]
[1617247637015,25.66508,1915.5,1915.0,0.38]
[1617247637815,25.66508,1915.5,1914.9,0.28]
[1617247638015,25.66508,1915.5,1914.9,0.68]
[1617247638235,25.66508,1915.5,1914.9,9.72213774]
[1617247638437,21.41998,1915.5,1915.0,0.4]
[1617247638635,21.41998,1915.5,1915.0,1.44803629]
[1617247638837,21.27998,1915.5,1915.0,1.44803629]
[1617247639837,21.27998,1915.5,1915.2,0.39]
[1617247640863,21.27998,1915.5,1915.0,1.04803629]
[1617247641065,21.27998,1915.5,1915.0,1.44803629]
[1617247641262,21.27998,1915.5,1915.0,0.4]
[1617247641863,21.27288,1915.5,1915.1,0.38]
[1617247642265,21.27288,1915.5,1914.9,0.28]
[1617247642486,21.27288,1915.5,1915.0,0.41]
[1617247644888,19.43438,1915.5,1915.0,0.41]
[1617247647935,17.58878,1915.5,1915.1,0.39]
[1617247649938,17.58878,1915.5,1914.9,5.29]
[1617247650138,17.58878,1915.5,1915.0,0.39]
[1617247650540,17.58878,1915.5,1914.9,6.34971746]
[1617247650740,17.58878,1915.5,1914.9,8.58]
[1617247650940,15.74848,1915.5,1915.1,0.41]
[1617247651760,7.82888,1915.5,1915.3,0.39]
[1617247651961,3.0876051,1915.9,1915.4,18.95143174]
[1617247651962,1.0,1915.9,1915.4,18.95143174]
[1617247652161,1.0,1915.9,1915.8,20.84]
[1617247652362,1.0,1915.9,1915.8,29.7852]
[1617247652762,1.0,1915.9,1915.8,38.9852]
[1617247652966,1.0,1915.9,1915.8,51.82027]
[1617247653161,1.0,1915.9,1915.8,59.86027]
[1617247653561,1.0,1915.9,1915.8,61.38819605]
[1617247653761,1.0,1915.9,1915.8,52.18819605]
[1617247653991,0.1598,1916.4,1915.9,6.837]
[1617247654196,0.1598,1916.4,1916.1,0.4]
[1617247654390,0.1098,1916.4,1916.1,0.4]
[1617247654989,0.1098,1916.4,1916.2,0.16364248]
[1617247656826,6.09651,1916.6,1916.2,1.89403192]
[1617247657025,6.09651,1916.6,1916.2,2.27403192]
[1617247657224,6.09651,1916.6,1916.2,0.54364248]
[1617247657829,6.09651,1916.6,1916.2,0.16364248]
[1617247658024,7.29651,1916.6,1916.2,0.16364248]
[1617247658225,9.48940477,1916.6,1916.2,0.16364248]
[1617247658425,9.49111977,1916.6,1916.2,0.16364248]
[1617247659465,6.0007754,1916.5,1916.2,0.16364248]
[1617247659664,4.2,1916.4,1916.2,0.16364248]
[1617247660059,1.2,1916.4,1916.2,0.16364248]
[1617247660860,1.15,1916.4,1916.2,0.16364248]
[1617247661260,8.9771,1916.4,1916.2,0.16364248]
[1617247662869,7.1378,1916.4,1916.2,0.16364248]
[1617247664884,21.9,1916.3,1916.2,0.16364248]
[1617247666085,20.0597,1916.3,1916.2,0.16364248]
[1617247666285,27.88579,1916.3,1916.2,0.16364248]
[1617247668939,26.04559,1916.3,1916.2,0.16364248]
[1617247670943,7.82609,1916.3,1916.2,0.16364248]
[1617247671941,5.98609,1916.3,1916.2,0.16364248]
[1617247672615,12.43609,1916.3,1916.2,0.16364248]
[1617247672811,5.98609,1916.3,1916.2,0.16364248]
[1617247673615,12.08609,1916.3,1916.2,0.16364248]
[1617247673813,5.98609,1916.3,1916.2,0.16364248]
[1617247674416,16.6671,1916.6,1916.2,0.16364248]
[1617247675014,14.8257,1916.6,1916.2,0.16364248]
[1617247675615,7.82584,1916.4,1916.2,0.16364248]
[1617247678019,5.95824,1916.4,1916.2,0.16364248]
[1617247681040,14.8257,1916.6,1916.2,0.16364248]
[1617247681838,14.8257,1916.6,1916.2,0.54364248]
[1617247682236,14.8257,1916.6,1916.2,1.74364248]
[1617247682440,14.3009,1916.8,1916.5,0.38]
[1617247682641,1.0,1916.9,1916.7,1.2]
[1617247682864,1.0,1916.9,1916.8,24.4138143]
[1617247683068,1.0,1916.9,1916.8,36.2138143]
[1617247683464,0.98103441,1916.9,1916.8,22.3438143]
[1617247683666,0.48103441,1916.9,1916.8,24.13690959]
[1617247683863,0.48103441,1916.9,1916.8,22.93690959]
[1617247684064,12.64273441,1917.4,1916.8,22.93690959]
[1617247684266,12.64273441,1917.4,1917.0,0.301]
[1617247684466,12.64273441,1917.4,1917.2,0.39]
[1617247684666,12.64273441,1917.4,1917.1,1.54078766]
[1617247685265,12.64273441,1917.4,1917.0,0.631]
[1617247685488,12.64273441,1917.4,1917.1,0.39]
[1617247687088,10.80373441,1917.4,1917.2,0.4]
[1617247688527,10.80373441,1917.4,1917.0,11.1575]
[1617247688734,10.80373441,1917.4,1917.0,15.1375]
[1617247689330,10.80373441,1917.4,1917.1,0.39]
[1617247690128,8.96233441,1917.4,1917.1,0.39]
[1617247691561,8.96233441,1917.4,1917.2,0.41]
[1617247692761,8.96233441,1917.4,1917.2,5.42]
[1617247692960,8.96233441,1917.4,1917.3,1.63527307]
[1617247693160,7.12383441,1917.4,1917.3,1.63527307]
[1617247693363,7.12383441,1917.4,1917.2,8.22915]
[1617247693569,7.12383441,1917.4,1917.2,0.41]
[1617247693964,7.12383441,1917.4,1917.1,8.0]
[1617247694163,7.12383441,1917.4,1917.1,0.39]
[1617247694966,7.12383441,1917.4,1917.0,5.261]
[1617247695764,7.12383441,1917.4,1917.0,8.251]
[1617247695995,7.12383441,1917.4,1917.0,0.251]
[1617247696197,13.10366441,1917.4,1917.0,0.251]
[1617247697797,13.10366441,1917.4,1916.6,0.38]
[1617247697798,0.14,1917.3,1916.6,0.38]